[Event "Titled Tuesday Blitz April 4 Early 2023"]
[White "Acikel, Mert"]
[Black "Ljukin, Sergei"]
[WhiteFideId "12956465"]
[BlackFideId "14102200"]
[WhiteElo "2097"]
[BlackElo "2312"]
[Result "0-1"]
[Round "07"]
[TimeControl "180+2"]
[Date "2023.04.04"]
[WhiteClock "0:00:03"]
[BlackClock "0:00:11"]

1. e4 {[%clk 0:02:59]}  e6 {[%clk 0:02:56]} 2. d4 {[%clk 0:02:59]}  d5 {[%clk 0:02:56]} 3. Nd2 {[%clk 0:02:59]}  Nf6 {[%clk 0:02:56]} 4. e5 {[%clk 0:02:59]}  Nfd7 {[%clk 0:02:57]} 5. Bd3 {[%clk 0:03:00]}  c5 {[%clk 0:02:57]} 6. c3 {[%clk 0:03:00]}  Nc6 {[%clk 0:02:58]} 7. Ne2 {[%clk 0:03:00]}  cxd4 {[%clk 0:02:59]} 8. cxd4 {[%clk 0:03:00]}  f6 {[%clk 0:02:59]} 9. exf6 {[%clk 0:03:00]}  Qxf6 {[%clk 0:02:59]} 10. Nf3 {[%clk 0:02:58]}  h6 {[%clk 0:03:00]} 11. O-O {[%clk 0:02:56]}  Bd6 {[%clk 0:02:59]} 12. Re1 {[%clk 0:02:52]}  O-O {[%clk 0:02:59]} 13. Ng3 {[%clk 0:02:52]}  Rf7 {[%clk 0:02:54]} 14. Nh5 {[%clk 0:02:48]}  Qe7 {[%clk 0:02:54]} 15. Bb1 {[%clk 0:02:43]}  Nf8 {[%clk 0:02:49]} 16. Ng3 {[%clk 0:02:28]}  Bd7 {[%clk 0:02:47]} 17. Nf5 {[%clk 0:02:19]}  Rxf5 {[%clk 0:02:35]} 18. Bxf5 {[%clk 0:02:20]}  Qf6 {[%clk 0:02:27]} 19. Bc2 {[%clk 0:02:16]}  Be8 {[%clk 0:02:27]} 20. Ne5 {[%clk 0:01:07]}  Nxe5 {[%clk 0:02:18]} 21. dxe5 {[%clk 0:01:02]}  Bxe5 {[%clk 0:02:19]} 22. Qg4 {[%clk 0:00:46]}  Rc8 {[%clk 0:01:44]} 23. Bd3 {[%clk 0:00:41]}  Bd7 {[%clk 0:01:37]} 24. Rb1 {[%clk 0:00:40]}  Bd6 {[%clk 0:01:35]} 25. Bd2 {[%clk 0:00:10]}  e5 {[%clk 0:01:31]} 26. Qe2 {[%clk 0:00:10]}  e4 {[%clk 0:01:29]} 27. Bb5 {[%clk 0:00:10]}  Bf5 {[%clk 0:01:25]} 28. Bc3 {[%clk 0:00:09]}  d4 {[%clk 0:01:17]} 29. Bd2 {[%clk 0:00:09]}  Qe5 {[%clk 0:00:41]} 30. g3 {[%clk 0:00:09]}  Kh8 {[%clk 0:00:21]} 31. Bf4 {[%clk 0:00:06]}  Qd5 {[%clk 0:00:19]} 32. Bxd6 {[%clk 0:00:05]}  Qxd6 {[%clk 0:00:20]} 33. Qh5 {[%clk 0:00:05]}  Rc5 {[%clk 0:00:14]} 34. a4 {[%clk 0:00:03]}  e3 {[%clk 0:00:12]} 35. Qe8 {[%clk 0:00:03]}  Bxb1 {[%clk 0:00:11]} 0-1


[Site "https://www.chess.com"]

[Event "Titled Tuesday Blitz April 4 Early 2023"]
[White "Lach, Aleksandra"]
[Black "Demin, Vladimir"]
[WhiteFideId "1134299"]
[BlackFideId "4167457"]
[WhiteElo "2111"]
[BlackElo "2540"]
[Result "0-1"]
[Round "07"]
[TimeControl "180+2"]
[Date "2023.04.04"]
[WhiteClock "0:01:35"]
[BlackClock "0:01:11"]

1. c4 {[%clk 0:03:00]}  e6 {[%clk 0:02:58]} 2. g3 {[%clk 0:02:59]}  d5 {[%clk 0:02:57]} 3. cxd5 {[%clk 0:02:58]}  exd5 {[%clk 0:02:57]} 4. Bg2 {[%clk 0:02:59]}  Nf6 {[%clk 0:02:57]} 5. d4 {[%clk 0:02:58]}  Be7 {[%clk 0:02:53]} 6. Nf3 {[%clk 0:02:57]}  O-O {[%clk 0:02:53]} 7. O-O {[%clk 0:02:57]}  c6 {[%clk 0:02:52]} 8. Nc3 {[%clk 0:02:55]}  Bf5 {[%clk 0:02:51]} 9. Bf4 {[%clk 0:02:55]}  h6 {[%clk 0:02:50]} 10. h3 {[%clk 0:02:55]}  Nbd7 {[%clk 0:02:49]} 11. Ne5 {[%clk 0:02:52]}  Nxe5 {[%clk 0:02:46]} 12. dxe5 {[%clk 0:02:40]}  Nd7 {[%clk 0:02:42]} 13. g4 {[%clk 0:02:38]}  Be6 {[%clk 0:02:41]} 14. e4 {[%clk 0:02:37]}  dxe4 {[%clk 0:02:32]} 15. Bxe4 {[%clk 0:02:33]}  Qa5 {[%clk 0:02:31]} 16. Qe2 {[%clk 0:02:27]}  Rfe8 {[%clk 0:02:27]} 17. Bc2 {[%clk 0:02:24]}  Qb4 {[%clk 0:02:09]} 18. Bg3 {[%clk 0:02:18]}  Nf8 {[%clk 0:02:05]} 19. a3 {[%clk 0:02:09]}  Qc5 {[%clk 0:01:53]} 20. Ne4 {[%clk 0:02:03]}  Qc4 {[%clk 0:01:48]} 21. Bd3 {[%clk 0:02:03]}  Qb3 {[%clk 0:01:46]} 22. Rac1 {[%clk 0:02:02]}  Rad8 {[%clk 0:01:42]} 23. Rc3 {[%clk 0:02:02]}  Qb6 {[%clk 0:01:42]} 24. Kh2 {[%clk 0:01:59]}  Bd5 {[%clk 0:01:20]} 25. f4 {[%clk 0:01:47]}  Ne6 {[%clk 0:01:15]} 26. f5 {[%clk 0:01:47]}  Nd4 {[%clk 0:01:15]} 27. Qe1 {[%clk 0:01:48]}  Qxb2+ {[%clk 0:01:15]} 28. Rf2 {[%clk 0:01:42]}  Nf3+ {[%clk 0:01:11]} 29. Kh1 {[%clk 0:01:38]}  Nxe1 {[%clk 0:01:11]} 30. Rxb2 {[%clk 0:01:35]}  Nxd3 {[%clk 0:01:11]} 0-1


[Site "https://www.chess.com"]

[Event "Titled Tuesday Blitz April 4 Early 2023"]
[White "Nguyen, Hong Anh"]
[Black "Fajdetic, Hrvoje"]
[WhiteFideId "12406732"]
[BlackFideId "14501945"]
[WhiteElo "2054"]
[BlackElo "2185"]
[Result "0-1"]
[Round "07"]
[TimeControl "180+2"]
[Date "2023.04.04"]
[WhiteClock "0:00:18"]
[BlackClock "0:00:39"]

1. d4 {[%clk 0:02:51]}  e6 {[%clk 0:02:58]} 2. c4 {[%clk 0:02:51]}  f5 {[%clk 0:02:58]} 3. g3 {[%clk 0:02:50]}  Nf6 {[%clk 0:02:58]} 4. Bg2 {[%clk 0:02:50]}  Be7 {[%clk 0:02:58]} 5. Nc3 {[%clk 0:02:51]}  O-O {[%clk 0:02:59]} 6. Qc2 {[%clk 0:02:51]}  d6 {[%clk 0:02:59]} 7. Nf3 {[%clk 0:02:51]}  Nc6 {[%clk 0:02:59]} 8. O-O {[%clk 0:02:49]}  e5 {[%clk 0:02:59]} 9. dxe5 {[%clk 0:02:42]}  dxe5 {[%clk 0:03:00]} 10. Rd1 {[%clk 0:02:41]}  Qe8 {[%clk 0:03:00]} 11. e4 {[%clk 0:02:40]}  Qh5 {[%clk 0:02:54]} 12. Nd5 {[%clk 0:02:03]}  Bd8 {[%clk 0:02:52]} 13. Nxf6+ {[%clk 0:01:03]}  Bxf6 {[%clk 0:02:49]} 14. exf5 {[%clk 0:00:54]}  Bxf5 {[%clk 0:02:50]} 15. Qb3 {[%clk 0:00:54]}  Bg4 {[%clk 0:02:36]} 16. Rf1 {[%clk 0:00:50]}  Na5 {[%clk 0:01:49]} 17. Qe3 {[%clk 0:00:42]}  Nxc4 {[%clk 0:01:42]} 18. Qb3 {[%clk 0:00:42]}  Kh8 {[%clk 0:01:36]} 19. h3 {[%clk 0:00:34]}  Be6 {[%clk 0:01:30]} 20. Qxb7 {[%clk 0:00:32]}  Bxh3 {[%clk 0:01:10]} 21. Qxc7 {[%clk 0:00:32]}  Bxg2 {[%clk 0:01:07]} 22. Kxg2 {[%clk 0:00:32]}  Qxf3+ {[%clk 0:01:04]} 23. Kxf3 {[%clk 0:00:28]}  Bd8+ {[%clk 0:01:04]} 24. Kg2 {[%clk 0:00:28]}  Bxc7 {[%clk 0:01:03]} 25. b3 {[%clk 0:00:29]}  Nd6 {[%clk 0:00:55]} 26. Ba3 {[%clk 0:00:29]}  Rf6 {[%clk 0:00:51]} 27. Rac1 {[%clk 0:00:28]}  Bb6 {[%clk 0:00:50]} 28. Bb2 {[%clk 0:00:24]}  Bd4 {[%clk 0:00:48]} 29. Ba3 {[%clk 0:00:23]}  Ne4 {[%clk 0:00:47]} 30. f3 {[%clk 0:00:22]}  Nd2 {[%clk 0:00:45]} 31. Rfd1 {[%clk 0:00:21]}  Nxf3 {[%clk 0:00:44]} 32. Rc7 {[%clk 0:00:20]}  Ng5 {[%clk 0:00:40]} 33. Be7 {[%clk 0:00:19]}  Rf2+ {[%clk 0:00:39]} 34. Kh1 {[%clk 0:00:18]}  Nf3 {[%clk 0:00:39]} 0-1


[Site "https://www.chess.com"]

[Event "Titled Tuesday Blitz April 4 Early 2023"]
[White "Kraus, Tomas"]
[Black "Baches Garcia, Guillermo"]
[WhiteFideId "331708"]
[BlackFideId "2209764"]
[WhiteElo "2389"]
[BlackElo "2465"]
[Result "1-0"]
[Round "07"]
[TimeControl "180+2"]
[Date "2023.04.04"]
[WhiteClock "0:00:10"]
[BlackClock "0:00:02"]

1. e4 {[%clk 0:03:00]}  d5 {[%clk 0:02:59]} 2. exd5 {[%clk 0:03:00]}  Qxd5 {[%clk 0:03:00]} 3. Nc3 {[%clk 0:02:59]}  Qa5 {[%clk 0:03:00]} 4. d4 {[%clk 0:02:59]}  c6 {[%clk 0:03:01]} 5. Nf3 {[%clk 0:02:58]}  Nf6 {[%clk 0:03:01]} 6. Bd3 {[%clk 0:02:53]}  Bf5 {[%clk 0:02:57]} 7. O-O {[%clk 0:02:51]}  e6 {[%clk 0:02:53]} 8. Bf4 {[%clk 0:02:50]}  Nbd7 {[%clk 0:02:45]} 9. Re1 {[%clk 0:02:47]}  Bb4 {[%clk 0:02:41]} 10. a3 {[%clk 0:02:16]}  Bxc3 {[%clk 0:02:29]} 11. bxc3 {[%clk 0:02:16]}  O-O {[%clk 0:02:22]} 12. Bd6 {[%clk 0:02:08]}  Rfe8 {[%clk 0:02:14]} 13. Bb4 {[%clk 0:02:08]}  Qc7 {[%clk 0:02:06]} 14. Bxf5 {[%clk 0:02:07]}  exf5 {[%clk 0:02:06]} 15. Qd3 {[%clk 0:01:59]}  g6 {[%clk 0:01:58]} 16. a4 {[%clk 0:01:57]}  Re4 {[%clk 0:01:53]} 17. Nd2 {[%clk 0:01:53]}  Rxe1+ {[%clk 0:01:46]} 18. Rxe1 {[%clk 0:01:52]}  Nd5 {[%clk 0:01:45]} 19. Nf3 {[%clk 0:01:43]}  N7f6 {[%clk 0:01:38]} 20. Ne5 {[%clk 0:01:42]}  Rd8 {[%clk 0:01:31]} 21. f3 {[%clk 0:01:27]}  Kg7 {[%clk 0:01:16]} 22. Ba3 {[%clk 0:00:44]}  b5 {[%clk 0:01:08]} 23. Bc1 {[%clk 0:00:37]}  bxa4 {[%clk 0:01:02]} 24. Qd2 {[%clk 0:00:37]}  Kg8 {[%clk 0:00:57]} 25. c4 {[%clk 0:00:34]}  Nb6 {[%clk 0:00:52]} 26. c3 {[%clk 0:00:28]}  c5 {[%clk 0:00:50]} 27. Qh6 {[%clk 0:00:15]}  cxd4 {[%clk 0:00:45]} 28. Bg5 {[%clk 0:00:15]}  Rd6 {[%clk 0:00:19]} 29. Nxg6 {[%clk 0:00:12]}  fxg6 {[%clk 0:00:10]} 30. Bxf6 {[%clk 0:00:12]}  Qf7 {[%clk 0:00:08]} 31. Bxd4 {[%clk 0:00:10]}  a3 {[%clk 0:00:07]} 32. Re8+ {[%clk 0:00:10]}  Qxe8 {[%clk 0:00:02]} 33. Qg7# {[%clk 0:00:10]} 1-0


[Site "https://www.chess.com"]

[Event "Titled Tuesday Blitz April 4 Early 2023"]
[White "Goltseva, Ekaterina"]
[Black "Alberto, Manuel"]
[WhiteFideId "24173770"]
[BlackFideId "10100148"]
[WhiteElo "2200"]
[BlackElo "2166"]
[Result "1-0"]
[Round "07"]
[TimeControl "180+2"]
[Date "2023.04.04"]
[WhiteClock "0:00:10"]
[BlackClock "0:00:10"]

1. h4 {[%clk 0:01:14]}  e5 {[%clk 0:02:57]} 2. h5 {[%clk 0:01:15]}  h6 {[%clk 0:02:55]} 3. b3 {[%clk 0:01:15]}  d5 {[%clk 0:02:53]} 4. Bb2 {[%clk 0:01:15]}  Nd7 {[%clk 0:02:52]} 5. g3 {[%clk 0:01:14]}  c6 {[%clk 0:02:51]} 6. Bg2 {[%clk 0:01:15]}  Ngf6 {[%clk 0:02:49]} 7. Nf3 {[%clk 0:01:15]}  Bd6 {[%clk 0:02:47]} 8. Nh4 {[%clk 0:01:14]}  Nc5 {[%clk 0:02:43]} 9. d4 {[%clk 0:01:12]}  exd4 {[%clk 0:02:43]} 10. Qxd4 {[%clk 0:01:12]}  Qe7 {[%clk 0:02:36]} 11. Nc3 {[%clk 0:01:09]}  a5 {[%clk 0:02:31]} 12. O-O-O {[%clk 0:01:07]}  a4 {[%clk 0:02:29]} 13. e4 {[%clk 0:01:04]}  axb3 {[%clk 0:02:20]} 14. axb3 {[%clk 0:01:05]}  Ne6 {[%clk 0:02:16]} 15. Qd2 {[%clk 0:00:57]}  Ba3 {[%clk 0:02:12]} 16. Na4 {[%clk 0:00:42]}  Bxb2+ {[%clk 0:01:59]} 17. Kxb2 {[%clk 0:00:43]}  b5 {[%clk 0:01:59]} 18. Nf5 {[%clk 0:00:43]}  Qf8 {[%clk 0:01:55]} 19. Qc3 {[%clk 0:00:36]}  Bd7 {[%clk 0:01:54]} 20. Nb6 {[%clk 0:00:29]}  Qa3+ {[%clk 0:01:48]} 21. Kb1 {[%clk 0:00:29]}  Ra6 {[%clk 0:01:47]} 22. Nxd7 {[%clk 0:00:25]}  Nxd7 {[%clk 0:00:55]} 23. exd5 {[%clk 0:00:19]}  b4 {[%clk 0:00:50]} 24. Qb2 {[%clk 0:00:19]}  Qxb2+ {[%clk 0:00:44]} 25. Kxb2 {[%clk 0:00:20]}  cxd5 {[%clk 0:00:44]} 26. Bxd5 {[%clk 0:00:19]}  Ndc5 {[%clk 0:00:39]} 27. Rhe1 {[%clk 0:00:16]}  O-O {[%clk 0:00:39]} 28. Ne7+ {[%clk 0:00:14]}  Kh8 {[%clk 0:00:33]} 29. Nc6 {[%clk 0:00:15]}  Rfa8 {[%clk 0:00:29]} 30. Nxb4 {[%clk 0:00:14]}  Ng5 {[%clk 0:00:23]} 31. Nxa6 {[%clk 0:00:13]}  Rxa6 {[%clk 0:00:20]} 32. Bc4 {[%clk 0:00:13]}  Rb6 {[%clk 0:00:19]} 33. f4 {[%clk 0:00:13]}  Nge4 {[%clk 0:00:17]} 34. Bxf7 {[%clk 0:00:13]}  Nxg3 {[%clk 0:00:16]} 35. Re8+ {[%clk 0:00:12]}  Kh7 {[%clk 0:00:16]} 36. Rdd8 {[%clk 0:00:11]}  g5 {[%clk 0:00:14]} 37. hxg6+ {[%clk 0:00:10]}  Kg7 {[%clk 0:00:14]} 38. Rg8+ {[%clk 0:00:11]}  Kf6 {[%clk 0:00:14]} 39. Bc4 {[%clk 0:00:10]}  Nf5 {[%clk 0:00:11]} 40. Rdf8+ {[%clk 0:00:09]}  Ke7 {[%clk 0:00:10]} 41. Rxf5 {[%clk 0:00:10]} 1-0


[Site "https://www.chess.com"]

[Event "Titled Tuesday Blitz April 4 Early 2023"]
[White "WindWhistler11"]
[Black "Aponte Ramos, Argimiro"]
[BlackFideId "3900568"]
[WhiteElo "2460"]
[BlackElo "2216"]
[Result "0-1"]
[Round "07"]
[TimeControl "180+2"]
[Date "2023.04.04"]
[WhiteClock "0:00:33"]
[BlackClock "0:01:29"]

1. Nf3 {[%clk 0:02:55]}  a6 {[%clk 0:02:59]} 2. g3 {[%clk 0:02:55]}  b5 {[%clk 0:02:59]} 3. d3 {[%clk 0:02:56]}  Bb7 {[%clk 0:03:00]} 4. Nbd2 {[%clk 0:02:56]}  Nf6 {[%clk 0:02:59]} 5. e4 {[%clk 0:02:57]}  e6 {[%clk 0:02:59]} 6. Bg2 {[%clk 0:02:57]}  d5 {[%clk 0:02:59]} 7. O-O {[%clk 0:02:57]}  dxe4 {[%clk 0:02:59]} 8. Ng5 {[%clk 0:02:57]}  Be7 {[%clk 0:02:57]} 9. Ngxe4 {[%clk 0:02:57]}  Nxe4 {[%clk 0:02:57]} 10. dxe4 {[%clk 0:02:58]}  O-O {[%clk 0:02:56]} 11. a4 {[%clk 0:02:59]}  Nd7 {[%clk 0:02:55]} 12. Qe2 {[%clk 0:02:58]}  Nc5 {[%clk 0:02:45]} 13. Rd1 {[%clk 0:02:48]}  Nxa4 {[%clk 0:02:39]} 14. Nc4 {[%clk 0:02:45]}  Qc8 {[%clk 0:02:32]} 15. Na5 {[%clk 0:02:44]}  Rb8 {[%clk 0:02:22]} 16. Nxb7 {[%clk 0:02:28]}  Qxb7 {[%clk 0:02:21]} 17. Rd7 {[%clk 0:02:17]}  Bc5 {[%clk 0:02:10]} 18. e5 {[%clk 0:02:10]}  Qb6 {[%clk 0:02:08]} 19. b3 {[%clk 0:01:47]}  Nc3 {[%clk 0:02:00]} 20. Qd3 {[%clk 0:01:26]}  Bxf2+ {[%clk 0:01:56]} 21. Kf1 {[%clk 0:01:26]}  Bg1 {[%clk 0:01:44]} 22. Qf3 {[%clk 0:01:10]}  Nd5 {[%clk 0:01:35]} 23. h4 {[%clk 0:00:37]}  f6 {[%clk 0:01:33]} 24. Qg4 {[%clk 0:00:33]}  Qf2# {[%clk 0:01:29]} 0-1


[Site "https://www.chess.com"]

[Event "Titled Tuesday Blitz April 4 Early 2023"]
[White "Yonal, Timur"]
[Black "Moral Garcia, Serafin"]
[WhiteFideId "44115725"]
[BlackFideId "2201925"]
[WhiteElo "1966"]
[BlackElo "2274"]
[Result "0-1"]
[Round "07"]
[TimeControl "180+2"]
[Date "2023.04.04"]
[WhiteClock "0:00:02"]
[BlackClock "0:00:33"]

1. e4 {[%clk 0:03:00]}  c5 {[%clk 0:02:58]} 2. Nf3 {[%clk 0:02:59]}  e6 {[%clk 0:02:58]} 3. d4 {[%clk 0:02:58]}  cxd4 {[%clk 0:02:58]} 4. Nxd4 {[%clk 0:02:59]}  Nc6 {[%clk 0:02:59]} 5. Nc3 {[%clk 0:02:56]}  Qc7 {[%clk 0:02:57]} 6. Be2 {[%clk 0:02:52]}  a6 {[%clk 0:02:52]} 7. O-O {[%clk 0:02:50]}  Nf6 {[%clk 0:02:51]} 8. Be3 {[%clk 0:02:47]}  Bb4 {[%clk 0:02:48]} 9. f3 {[%clk 0:02:43]}  Bxc3 {[%clk 0:02:44]} 10. bxc3 {[%clk 0:02:43]}  d5 {[%clk 0:02:44]} 11. Nxc6 {[%clk 0:02:28]}  Qxc6 {[%clk 0:02:43]} 12. Bd4 {[%clk 0:02:16]}  dxe4 {[%clk 0:02:38]} 13. Bxf6 {[%clk 0:02:15]}  gxf6 {[%clk 0:02:38]} 14. fxe4 {[%clk 0:02:13]}  Qxc3 {[%clk 0:02:37]} 15. Rf3 {[%clk 0:02:01]}  Qe5 {[%clk 0:02:36]} 16. Rd3 {[%clk 0:02:00]}  Kf8 {[%clk 0:02:34]} 17. Rb1 {[%clk 0:01:48]}  Rg8 {[%clk 0:02:29]} 18. Rbb3 {[%clk 0:01:41]}  Rg5 {[%clk 0:02:22]} 19. h4 {[%clk 0:01:17]}  Rg6 {[%clk 0:02:19]} 20. h5 {[%clk 0:01:01]}  Rg5 {[%clk 0:02:14]} 21. h6 {[%clk 0:01:00]}  b5 {[%clk 0:01:55]} 22. Rd8+ {[%clk 0:00:32]}  Ke7 {[%clk 0:01:51]} 23. Rh8 {[%clk 0:00:31]}  Bb7 {[%clk 0:01:45]} 24. Rxa8 {[%clk 0:00:28]}  Bxa8 {[%clk 0:01:44]} 25. Rd3 {[%clk 0:00:28]}  Bc6 {[%clk 0:01:16]} 26. Qd2 {[%clk 0:00:18]}  Qc7 {[%clk 0:00:57]} 27. Qb4+ {[%clk 0:00:17]}  Ke8 {[%clk 0:00:55]} 28. c4 {[%clk 0:00:15]}  Bxe4 {[%clk 0:00:47]} 29. Re3 {[%clk 0:00:02]}  Bc6 {[%clk 0:00:36]} 30. cxb5 {[%clk 0:00:02]}  axb5 {[%clk 0:00:35]} 31. Bxb5 {[%clk 0:00:02]}  Bxb5 {[%clk 0:00:33]} 0-1


[Site "https://www.chess.com"]

[Event "Titled Tuesday Blitz April 4 Early 2023"]
[White "Kornyukov, Alexey"]
[Black "Melikhov, Evgeny V."]
[WhiteFideId "4150457"]
[BlackFideId "4122046"]
[WhiteElo "2352"]
[BlackElo "2158"]
[Result "0-1"]
[Round "07"]
[TimeControl "180+2"]
[Date "2023.04.04"]
[WhiteClock "0:00:19"]
[BlackClock "0:00:22"]

1. e4 {[%clk 0:03:00]}  c5 {[%clk 0:02:58]} 2. Nf3 {[%clk 0:03:00]}  d6 {[%clk 0:02:59]} 3. c3 {[%clk 0:03:00]}  Nf6 {[%clk 0:02:58]} 4. Be2 {[%clk 0:02:59]}  Bd7 {[%clk 0:02:56]} 5. d3 {[%clk 0:02:58]}  Bc6 {[%clk 0:02:56]} 6. Be3 {[%clk 0:02:57]}  Nbd7 {[%clk 0:02:55]} 7. O-O {[%clk 0:02:56]}  e6 {[%clk 0:02:55]} 8. Nbd2 {[%clk 0:02:53]}  Be7 {[%clk 0:02:53]} 9. d4 {[%clk 0:02:51]}  Nxe4 {[%clk 0:02:47]} 10. Nxe4 {[%clk 0:02:48]}  Bxe4 {[%clk 0:02:46]} 11. dxc5 {[%clk 0:02:48]}  Nxc5 {[%clk 0:02:31]} 12. Bxc5 {[%clk 0:02:39]}  dxc5 {[%clk 0:02:29]} 13. Bb5+ {[%clk 0:02:33]}  Bc6 {[%clk 0:02:29]} 14. Bxc6+ {[%clk 0:02:32]}  bxc6 {[%clk 0:02:29]} 15. Qa4 {[%clk 0:02:31]}  Qb6 {[%clk 0:02:23]} 16. Ne5 {[%clk 0:02:28]}  Qb5 {[%clk 0:02:07]} 17. Qe4 {[%clk 0:02:22]}  O-O {[%clk 0:02:01]} 18. Qxc6 {[%clk 0:02:18]}  Qxc6 {[%clk 0:02:00]} 19. Nxc6 {[%clk 0:02:18]}  Bf6 {[%clk 0:02:00]} 20. Rfd1 {[%clk 0:02:15]}  Rfc8 {[%clk 0:01:57]} 21. Na5 {[%clk 0:02:12]}  Rab8 {[%clk 0:01:51]} 22. Rab1 {[%clk 0:02:00]}  g6 {[%clk 0:01:43]} 23. Nc4 {[%clk 0:01:53]}  Rd8 {[%clk 0:01:35]} 24. g3 {[%clk 0:01:50]}  Rd5 {[%clk 0:01:29]} 25. Ne3 {[%clk 0:01:47]}  Rxd1+ {[%clk 0:01:22]} 26. Nxd1 {[%clk 0:01:47]}  Rd8 {[%clk 0:01:17]} 27. b4 {[%clk 0:01:42]}  cxb4 {[%clk 0:01:16]} 28. cxb4 {[%clk 0:01:41]}  Rd2 {[%clk 0:01:13]} 29. a4 {[%clk 0:01:26]}  Bd4 {[%clk 0:01:06]} 30. a5 {[%clk 0:01:22]}  a6 {[%clk 0:01:04]} 31. Kf1 {[%clk 0:01:20]}  Kg7 {[%clk 0:00:59]} 32. h4 {[%clk 0:01:16]}  h5 {[%clk 0:00:59]} 33. Ne3 {[%clk 0:01:15]}  Bxe3 {[%clk 0:00:56]} 34. fxe3 {[%clk 0:01:14]}  Ra2 {[%clk 0:00:56]} 35. b5 {[%clk 0:01:06]}  axb5 {[%clk 0:00:56]} 36. Rxb5 {[%clk 0:01:06]}  Kf6 {[%clk 0:00:56]} 37. e4 {[%clk 0:01:04]}  Ra4 {[%clk 0:00:42]} 38. e5+ {[%clk 0:00:58]}  Kf5 {[%clk 0:00:41]} 39. Kf2 {[%clk 0:00:48]}  Kg4 {[%clk 0:00:38]} 40. Rb7 {[%clk 0:00:42]}  Rxa5 {[%clk 0:00:34]} 41. Rxf7 {[%clk 0:00:42]}  Rxe5 {[%clk 0:00:30]} 42. Rf6 {[%clk 0:00:28]}  Rf5+ {[%clk 0:00:30]} 43. Rxf5 {[%clk 0:00:26]}  exf5 {[%clk 0:00:29]} 44. Kg2 {[%clk 0:00:26]}  f4 {[%clk 0:00:28]} 45. gxf4 {[%clk 0:00:26]}  Kxh4 {[%clk 0:00:28]} 46. Kf3 {[%clk 0:00:25]}  Kh3 {[%clk 0:00:27]} 47. f5 {[%clk 0:00:18]}  gxf5 {[%clk 0:00:26]} 48. Kf2 {[%clk 0:00:16]}  Kg4 {[%clk 0:00:25]} 49. Kg2 {[%clk 0:00:16]}  f4 {[%clk 0:00:25]} 50. Kf2 {[%clk 0:00:16]}  f3 {[%clk 0:00:25]} 51. Kf1 {[%clk 0:00:16]}  Kg3 {[%clk 0:00:25]} 52. Kg1 {[%clk 0:00:16]}  f2+ {[%clk 0:00:24]} 53. Kf1 {[%clk 0:00:16]}  h4 {[%clk 0:00:24]} 54. Ke2 {[%clk 0:00:16]}  Kg2 {[%clk 0:00:24]} 55. Ke3 {[%clk 0:00:17]}  f1=Q {[%clk 0:00:24]} 56. Ke4 {[%clk 0:00:17]}  h3 {[%clk 0:00:24]} 57. Kd4 {[%clk 0:00:18]}  h2 {[%clk 0:00:25]} 58. Kc5 {[%clk 0:00:18]}  h1=Q {[%clk 0:00:24]} 59. Kc6 {[%clk 0:00:19]}  Qf5 {[%clk 0:00:24]} 60. Kc7 {[%clk 0:00:20]}  Qh6 {[%clk 0:00:23]} 61. Kb7 {[%clk 0:00:19]}  Qf7+ {[%clk 0:00:22]} 62. Ka8 {[%clk 0:00:19]}  Qhf8# {[%clk 0:00:22]} 0-1


[Site "https://www.chess.com"]

[Event "Titled Tuesday Blitz April 4 Early 2023"]
[White "EREBUNI91"]
[Black "Yanayt, Eugene"]
[BlackFideId "2020165"]
[WhiteElo "2646"]
[BlackElo "2083"]
[Result "0-1"]
[Round "07"]
[TimeControl "180+2"]
[Date "2023.04.04"]
[WhiteClock "0:00:16"]
[BlackClock "0:00:08"]

1. e4 {[%clk 0:03:00]}  c5 {[%clk 0:02:59]} 2. Nc3 {[%clk 0:03:00]}  g6 {[%clk 0:02:58]} 3. d4 {[%clk 0:02:59]}  cxd4 {[%clk 0:02:59]} 4. Qxd4 {[%clk 0:02:59]}  Nf6 {[%clk 0:02:59]} 5. Nf3 {[%clk 0:02:56]}  Nc6 {[%clk 0:03:00]} 6. Qa4 {[%clk 0:02:56]}  d6 {[%clk 0:02:59]} 7. e5 {[%clk 0:02:56]}  dxe5 {[%clk 0:02:59]} 8. Nxe5 {[%clk 0:02:57]}  Bd7 {[%clk 0:02:59]} 9. Nxd7 {[%clk 0:02:57]}  Nxd7 {[%clk 0:03:00]} 10. Bb5 {[%clk 0:02:57]}  Bg7 {[%clk 0:02:57]} 11. Be3 {[%clk 0:02:50]}  O-O {[%clk 0:02:54]} 12. O-O {[%clk 0:02:46]}  Nb6 {[%clk 0:02:51]} 13. Qh4 {[%clk 0:02:41]}  e5 {[%clk 0:02:43]} 14. Bg5 {[%clk 0:02:32]}  Qd4 {[%clk 0:02:42]} 15. Qh3 {[%clk 0:02:24]}  e4 {[%clk 0:02:31]} 16. Rad1 {[%clk 0:02:16]}  Qe5 {[%clk 0:02:23]} 17. Qg3 {[%clk 0:02:06]}  Rac8 {[%clk 0:01:54]} 18. Bf4 {[%clk 0:02:03]}  Qe6 {[%clk 0:01:51]} 19. Rd6 {[%clk 0:02:00]}  Qf5 {[%clk 0:01:47]} 20. Be2 {[%clk 0:01:50]}  h5 {[%clk 0:01:35]} 21. Rfd1 {[%clk 0:01:46]}  Nb4 {[%clk 0:01:23]} 22. a3 {[%clk 0:01:17]}  Nxc2 {[%clk 0:01:19]} 23. Nd5 {[%clk 0:01:17]}  Rce8 {[%clk 0:00:46]} 24. Nxb6 {[%clk 0:01:01]}  axb6 {[%clk 0:00:45]} 25. R1d5 {[%clk 0:01:01]}  Qc8 {[%clk 0:00:44]} 26. Rd7 {[%clk 0:00:38]}  e3 {[%clk 0:00:30]} 27. Rc7 {[%clk 0:00:34]}  exf2+ {[%clk 0:00:24]} 28. Qxf2 {[%clk 0:00:34]}  Qe6 {[%clk 0:00:24]} 29. Rd6 {[%clk 0:00:18]}  Qxe2 {[%clk 0:00:21]} 30. Rxc2 {[%clk 0:00:18]}  Qe4 {[%clk 0:00:14]} 31. Rcd2 {[%clk 0:00:16]}  Rc8 {[%clk 0:00:10]} 32. h3 {[%clk 0:00:16]}  Rc1+ {[%clk 0:00:09]} 33. Kh2 {[%clk 0:00:16]}  Rb1 {[%clk 0:00:09]} 34. Bg3 {[%clk 0:00:16]}  Ra1 {[%clk 0:00:08]} 35. Rd7 {[%clk 0:00:16]}  Qb1 {[%clk 0:00:08]} 36. Rxb7 {[%clk 0:00:16]}  Qh1# {[%clk 0:00:08]} 0-1


[Site "https://www.chess.com"]